Cogmind - Beta 17.1 @@@ ROGUE MODE // 2026.09.04 @ 22:19:16 Player: Finn Result: Destroyed by S-27 Virus with Autogun Performance ------------- Evolutions (6) 3000 Regions Visited (10) 2000 Robots Destroyed (50) 250 Value Destroyed (1862) 1862 Prototype IDs (2) 40 Alien Tech Used (0) 0 Bonus (108) 108 TOTAL SCORE: 7260 Bonus ------- Follower Combat Kills 108 Cogmind --------- Core Integrity 0/1150 Matter 160/300 Energy 99/100 System Corruption 3% Temperature Cool (0) Movement Core (50) Location -4/Factory Parts ------- > --- POWER (3) -------- (None) > --- PROPULSION (6) --- (None) > --- UTILITY (7) ------ (None) > --- WEAPON (3) ------- (None) > --- INVENTORY (5) ---- Makeshift Trap Scanner Reaction Control System Signal Generator Peak State ------------ > --- POWER ------------ Light Nuclear Core Improved Deuterium Engine Light Neutrino Core > --- PROPULSION ------- Carbon-fiber Leg Carbon-fiber Leg VTOL Module VTOL Module VTOL Module Improved Flight Unit > --- UTILITY ---------- Advanced Heat Sink Improved Trap Scanner Improved Signal Interpreter Core Analyzer > --- WEAPON ----------- Gatling Laser Coil Gun Axe > --- INVENTORY -------- Gravmag Array Rocket Launcher Improved Grenade Launcher Signal Generator [Rating: 60] Favorites ----------- Power Light Ion Engine Engine Light Ion Engine Power Core Light Neutrino Core Propulsion Improved Flight Unit Leg Carbon-fiber Leg Wheel Compact Wheel Flight Unit Improved Flight Unit Utility ECM Suite Device ECM Suite Storage Small Storage Unit Processor Improved Signal Interpreter Weapon Assault Rifle Energy Gun Gatling Laser Energy Cannon Beam Cannon Ballistic Gun Assault Rifle Launcher Rocket Launcher Special Weapon Remote Datajack Slashing Weapon Axe Build | -11 -10 -10 -9 -8 -7 -6 -5 -5 -5 -4 ------- Run | Yrd Mat Min Mat Mat Fac Fac Fac Upp Upp Fac Slots Evolved 12 | . . . 2 2 2 2 2 . . 2 Power 2 | . . . . 1 . . 1 . . . Propulsion 4 | . . . 1 . 1 1 1 . . . Utility 5 | . . . 1 . 1 1 . . . 2 Weapon 1 | . . . . 1 . . . . . . Parts Attached 57 | 7 2 2 8 1 6 11 16 4 . . Power 8 | 1 . . 2 . . 1 3 1 . . Engine 4 | 1 . . 2 . . 1 . . . . Core 4 | . . . . . . . 3 1 . . Reactor . | . . . . . . . . . . . Propulsion 20 | 2 . 1 3 1 . 2 10 1 . . Treads . | . . . . . . . . . . . Leg 2 | . . . . . . 2 . . . . Wheel 3 | 2 . 1 . . . . . . . . Hover . | . . . . . . . . . . . Flight 15 | . . . 3 1 . . 10 1 . . Utility 12 | 1 2 1 1 . 3 3 . 1 . . Device 9 | . 2 1 1 . 2 2 . 1 . . Storage 1 | 1 . . . . . . . . . . Processor 2 | . . . . . 1 1 . . . . Hackware . | . . . . . . . . . . . Protection . | . . . . . . . . . . . Artifact . | . . . . . . . . . . . Weapon 17 | 3 . . 2 . 3 5 3 1 . . Energy Gun 3 | 1 . . . . . 1 . 1 . . Energy Cannon 1 | . . . . . 1 . . . . . Ballistic Gun 7 | 2 . . 1 . . 1 3 . . . Ballistic Cannon . | . . . . . . . . . . . Launcher 2 | . . . . . . 2 . . . . Special Weapon 2 | . . . 1 . 1 . . . . . Impact Weapon . | . . . . . . . . . . . Slashing Weapon 2 | . . . . . 1 1 . . . . Piercing Weapon . | . . . . . . . . . . . Special Melee Weapon . | . . . . . . . . . . . Unidentified Prototypes 2 | . . . 1 . . . 1 . . . Parts Lost 44 | . . 1 2 . 10 5 9 11 3 3 Power 8 | . . . 1 . 2 . 2 2 . 1 Propulsion 15 | . . 1 1 . 2 1 4 4 2 . Utility 7 | . . . . . 3 1 1 1 . 1 Weapon 14 | . . . . . 3 3 2 4 1 1 Highest Loss Streak 10 | . . 1 1 . 7 5 3 10 3 3 To Critical Strikes . | . . . . . . . . . . . Average Backups 3 | 1 3 4 3 3 3 2 3 2 3 2 Power . | . 1 1 . . . . . . . . Propulsion . | . . . . . . . 1 . . . Utility . | . . . . . . . . 1 2 2 Weapon 2 | . 1 2 3 2 2 2 2 . 1 . Tool/Special . | . . . . . . . . . . . Unused Backups 4 | . . 2 . . . . 1 . . 1 Power . | . . . . . . . . . . . Propulsion 1 | . . . . . . . 1 . . . Utility 2 | . . 1 . . . . . . . 1 Weapon 1 | . . 1 . . . . . . . . Tool/Special . | . . . . . . . . . . . Average Slot Usage (%) 75 | . 97 94 86 87 85 66 74 33 32 8 Engine 9 | . 14 14 11 11 13 5 2 . . . Core 1 | . . . . . . . 8 3 5 2 Leg 1 | . . . . . . 10 3 . . . Wheel 5 | . 28 24 16 . . . . . . . Flight 15 | . . . 5 27 27 6 21 8 9 . Device 19 | . 16 26 30 27 26 17 8 5 5 2 Processor 3 | . . . . . . 9 11 5 5 3 Energy Cannon 1 | . . . . . 4 . . . . . Ballistic Gun 11 | . 28 28 21 13 9 1 5 5 4 . Slashing Weapon 1 | . . . . . . 5 5 . . . Peak Build Rating 60 | 6 7 10 26 27 35 48 60 42 25 20 Average Rating 25 | 4 6 7 13 26 28 38 46 22 23 8 On Entrance 20 | . 6 7 10 26 27 24 48 42 25 15 Avg Prop Armor Cover (%) 1 | . . . 5 . . 1 3 . . . Naked Turns 66 | . . . . . . . . . . 66 Heaviest Build 39 | 14 16 12 18 23 23 30 39 27 18 13 Greatest Support 32 | 32 32 32 26 15 20 30 30 20 10 3 Greatest Overweight (x) 6 | . . . 2 1 1 3 6 3 5 4 Average Overweight (x) . | . . . . 1 . . . . 1 . Largest Inventory Capacity 8 | 8 8 5 5 5 5 5 5 5 5 5 Average Capacity 5 | 6 6 5 5 5 5 5 5 5 5 5 Most Carried 5 | 3 4 5 5 5 5 5 5 5 4 4 Average Carried 4 | 1 3 4 4 4 4 4 4 3 4 3 Final Capacity 8 | 8 5 5 5 5 5 5 5 5 5 5 Final Carried 5 | 2 3 5 5 5 5 5 5 4 4 3 Class Distribution -------------------- 77% | Mutant 17% | Scavenger-Mutant Dominant Class ---------------- Mutant | -10/Materials Mutant | -10/Mines Mutant | -9/Materials Mutant | -8/Materials Mutant | -7/Factory Scavenger-Mutant | -6/Factory Scavenger-Mutant | -5/Factory Mutant | -5/Upper Caves Mutant | -5/Upper Caves Mutant | -4/Factory Resources | -11 -10 -10 -9 -8 -7 -6 -5 -5 -5 -4 ----------- Run | Yrd Mat Min Mat Mat Fac Fac Fac Upp Upp Fac Matter Collected 1282 | 270 . 191 184 . 128 142 274 93 . . Remotely . | . . . . . . . . . . . Salvage Created 1632 | . . 235 200 . 175 152 469 401 . . Parts 94 | . . 20 7 . 13 6 30 18 . . Haulers Intercepted 1 | . . . 1 . . . . . . . Recyclers Shooed . | . . . . . . . . . . . Parts Field Recycled . | . . . . . . . . . . . Retrieved Matter . | . . . . . . . . . . . Parts Self-Destructed 10 | . . . . . . . . 10 . . Prevented . | . . . . . . . . . . . Parts Restored . | . . . . . . . . . . . Kills | -11 -10 -10 -9 -8 -7 -6 -5 -5 -5 -4 ------- Run | Yrd Mat Min Mat Mat Fac Fac Fac Upp Upp Fac Combat Hostiles Destroyed 47 | . . 5 4 . 4 3 12 19 . . Melee 2 | . . . . . 1 . 1 . . . Guns 27 | . . 5 4 . 2 3 10 3 . . Cannons 1 | . . . . . 1 . . . . . AOE 16 | . . . . . . . . 16 . . Classes Destroyed 11 | . . 4 2 . 2 1 1 1 . . Worker 1 | . . 1 . . . . . . . . Tunneler 1 | . . 1 . . . . . . . . Hauler 1 | . . . 1 . . . . . . . Watcher 1 | . . . 1 . . . . . . . Swarmer 20 | . . . . . . . 9 11 . . Grunt 16 | . . 4 4 . . 2 . 6 . . Duelist 1 | . . . . . . 1 . . . . Sentry 5 | . . . . . 1 . 3 1 . . Hunter 1 | . . . . . . . . 1 . . Programmer 3 | . . . . . 3 . . . . . Assembled 1 | . . 1 . . . . . . . . Best Kill Streak 18 | . . 3 2 . 1 3 5 18 . . Combat Bots Only 18 | . . 2 2 . 1 3 5 18 . . Max Kills in Single Turn 5 | . . 1 1 . 1 1 2 5 . . Gunslinging . | . . . . . . . . . . . Exploded 5 | . . . . . . . . 5 . . Melee 1 | . . . . . 1 . 1 . . . Uniques/NPCs Destroyed . | . . . . . . . . . . . Combat | -11 -10 -10 -9 -8 -7 -6 -5 -5 -5 -4 -------- Run | Yrd Mat Min Mat Mat Fac Fac Fac Upp Upp Fac Hostile Shots Fired 442 | . . 18 23 2 120 18 53 71 20 117 Missed 156 | . . 4 7 . 54 5 10 32 3 41 Hits 286 | . . 14 16 2 66 13 43 39 17 76 Melee 3 | . . 2 . . . 1 . . . . Projectile 283 | . . 12 16 2 66 12 43 39 17 76 Critical Strikes 11 | . . . . . 1 1 3 . 2 4 Damage Taken 4728 | . . 212 191 32 789 309 806 790 329 1270 Core 2086 | . . 39 70 . 259 32 166 189 174 1157 Absorbed by Shields 61 | . . . . . 20 22 19 . . . Core Remaining (%) 81 | 100 . 84 82 100 63 96 . . 47 . Volleys Fired 110 | . . 23 15 . 18 8 21 21 . 4 Largest 2 | . . 2 2 . 2 1 2 2 . 1 Hottest 110 | . . 40 105 . 85 80 110 108 . 75 Shots Fired 189 | . . 45 30 . 35 8 39 28 . 4 Gun 159 | . . 45 29 . 20 7 39 15 . 4 Cannon 16 | . . . . . 15 1 . . . . Launcher 13 | . . . . . . . . 13 . . Special 1 | . . . 1 . . . . . . . Kinetic 131 | . . 45 29 . 20 . 24 13 . . Thermal 45 | . . . 1 . 15 8 15 2 . 4 Explosive 13 | . . . . . . . . 13 . . Electromagnetic . | . . . . . . . . . . . Robot Hit Streak 18 | . . 6 5 . 5 13 18 10 . 2 Robot Miss Streak 4 | . . 3 3 . 4 1 4 4 . 3 Penetration Max 1 | . . . . . . . 1 . . . Secondary Targets 2 | . . . 1 . . . 1 . . . Max Gunslinging Chain 1 | . . . 1 . . . 1 . . . Shots Hit Robots 132 | . . 19 20 . 26 10 38 18 . 1 Core Hits 110 | . . 11 12 . 10 11 26 40 . . Critical Kills 1 | . . . . . . . 1 . . . Critical Parts Destroyed 2 | . . . . . . . . 2 . . Critical Strikes 5 | . . . . . . . 3 2 . . Destroy 3 | . . . . . . . 1 2 . . Sever 2 | . . . . . . . 2 . . . Melee Attacks 11 | . . . . . 3 4 4 . . . Impact . | . . . . . . . . . . . Slashing 11 | . . . . . 3 4 4 . . . Piercing . | . . . . . . . . . . . Sneak Attacks 1 | . . . . . . 1 . . . . Combat Hostiles . | . . . . . . . . . . . Follow-up Attacks . | . . . . . . . . . . . Damage Inflicted 4344 | . . 245 298 . 523 310 899 2047 . 22 Guns 2004 | . . 245 288 . 280 209 739 221 . 22 Cannons 168 | . . . . . 151 17 . . . . Explosions 1826 | . . . . . . . . 1826 . . Melee 336 | . . . . . 92 84 160 . . . Ramming . | . . . . . . . . . . . Kinetic 1416 | . . 245 288 . 280 . 427 176 . . Thermal 766 | . . . 10 . 151 226 312 45 . 22 Explosive 1826 | . . . . . . . . 1826 . . Electromagnetic . | . . . . . . . . . . . Impact . | . . . . . . . . . . . Slashing 336 | . . . . . 92 84 160 . . . Piercing . | . . . . . . . . . . . Highest Corruption 5 | . 1 3 . . 5 . . . . 3 Average Corruption 2 | . 1 2 . . 2 . . . . 2 Corruption Purged . | . . . . . . . . . . . Corruption Blocked . | . . . . . . . . . . . Effects 33 | . 3 12 . . 15 . . . . 3 Message Errors 1 | . . 1 . . . . . . . . Matter Fused 10 | . 3 2 . . 4 . . . . 1 Heat Flow Errors 11 | . . 4 . . 6 . . . . 1 Energy Discharges 2 | . . 2 . . . . . . . . Parts Rejected 1 | . . 1 . . . . . . . . Data Loss (minor) 2 | . . . . . 2 . . . . . Data Loss (major) 3 | . . 1 . . 1 . . . . 1 Misfires 2 | . . . . . 2 . . . . . Weapon Failures 1 | . . 1 . . . . . . . . Overload Shots . | . . . . . . . . . . . Overflow Damage 47 | . . . . . . . 13 34 . . Projectiles . | . . . . . . . . . . . Explosions 34 | . . . . . . . . 34 . . Melee 13 | . . . . . . . 13 . . . Knockbacks . | . . . . . . . . . . . Impact . | . . . . . . . . . . . Kinetic . | . . . . . . . . . . . Secondary . | . . . . . . . . . . . Self-Inflicted Damage 43 | . . . . . . . . 43 . . Shots 1 | . . . . . . . . 1 . . Rammed 1 | . . . . . . . . . . 1 Targets Rammed 1 | . . . . . . . . . . 1 Kicked . | . . . . . . . . . . . Crushed . | . . . . . . . . . . . Highest Temperature 317 | . . 217 57 . 317 166 262 36 14 114 Average Temperature 88 | . . 93 35 . 94 85 96 15 14 25 Received Heat Transfer 899 | . . 72 93 9 114 123 81 153 136 118 Siege Activations . | . . . . . . . . . . . Martial Activations . | . . . . . . . . . . . Shielding Activations . | . . . . . . . . . . . Robots Disrupted . | . . . . . . . . . . . Combat Hostiles . | . . . . . . . . . . . Robots Corrupted . | . . . . . . . . . . . Combat Hostiles . | . . . . . . . . . . . Parts Fried . | . . . . . . . . . . . Impact Corruptions . | . . . . . . . . . . . Robots Melted 1 | . . . . . . . 1 . . . Combat Hostiles 1 | . . . . . . . 1 . . . Parts Melted 2 | . . . . . . . 2 . . . Heat Transferred 1724 | . . . 80 . 296 512 725 74 . 37 Parts Sabotaged . | . . . . . . . . . . . Parts Stolen . | . . . . . . . . . . . Parts Stripped . | . . . . . . . . . . . Power Chain Reactions . | . . . . . . . . . . . Alert | -11 -10 -10 -9 -8 -7 -6 -5 -5 -5 -4 ------- Run | Yrd Mat Min Mat Mat Fac Fac Fac Upp Upp Fac Maximum Alert Level . | . . . . . . . . . . . Low Security (%) 100 | 100 100 100 100 100 100 100 100 . . 100 Level 1 . | . . . . . . . . . . . Level 2 . | . . . . . . . . . . . Level 3 . | . . . . . . . . . . . Level 4 . | . . . . . . . . . . . Level 5 . | . . . . . . . . . . . High Security . | . . . . . . . . . . . Max Security . | . . . . . . . . . . . Peak Influence 112 | . 2 65 112 60 30 60 78 . . 100 Initial 46 | . . . . 46 9 9 . . . . Average 10 | . . 9 27 38 4 9 28 . . 21 Influence Increases 1419 | . 2 90 240 14 135 82 332 400 . 124 Destroy 0b10 Robot/C 1000 | . . 80 160 . 80 60 240 380 . . Destroy 0b10 Robot/NC 30 | . . 10 20 . . . . . . . Destroy Leader 158 | . . . 38 . 40 10 50 20 . . Allied During Kill 21 | . . . 21 . . . . . . . Successful Hack 36 | . 2 . . 14 . 12 8 . . . Disable Machine 15 | . . . . . . . 15 . . . Destroy Structure 9 | . . . 1 . . . 4 . . 4 Partial Spotted 15 | . . . . . . . 15 . . . Lose Combat Pursuer 135 | . . . . . 15 . . . . 120 Influence Decreases 1329 | . 2 90 128 106 134 103 272 395 65 34 Entered New Map 125 | . . . . 66 11 12 . 23 13 . Time Decay 907 | . 2 90 68 40 110 91 192 262 22 30 Lost Part 257 | . . . 20 . 13 . 80 110 30 4 Lost Ally 40 | . . . 40 . . . . . . . Squads Dispatched 11 | . . 1 3 . 4 . 2 . . 1 Investigation 2 | . . . 2 . . . . . . . Extermination 5 | . . . . . 4 . 1 . . . Reinforcement 3 | . . . 1 . . . 1 . . 1 Assault 1 | . . 1 . . . . . . . . Garrison . | . . . . . . . . . . . Intercept . | . . . . . . . . . . . Searches Triggered . | . . . . . . . . . . . Construction Impeded . | . . . . . . . . . . . Haulers Reinforced . | . . . . . . . . . . . Active Scanning Responses . | . . . . . . . . . . . Cargo Convoy Interrupts . | . . . . . . . . . . . Stealth | -11 -10 -10 -9 -8 -7 -6 -5 -5 -5 -4 --------- Run | Yrd Mat Min Mat Mat Fac Fac Fac Upp Upp Fac Distress Signals 4 | . . . 1 . 1 . 1 . . 1 Communications Jammed . | . . . . . . . . . . . Distress Signals . | . . . . . . . . . . . Times Spotted 101 | . 3 6 12 1 11 6 17 19 3 23 Peak Tracking Total 14 | . 1 3 4 1 3 3 5 13 3 14 Tactical Retreats 8 | . 1 1 . . 1 1 . 1 . 3 ECM-based Alert Blocks 5 | . 1 1 . . . 3 . . . . Traps | -11 -10 -10 -9 -8 -7 -6 -5 -5 -5 -4 ------- Run | Yrd Mat Min Mat Mat Fac Fac Fac Upp Upp Fac Traps Triggered 11 | . 1 . . . 8 1 . . . 1 Indirectly . | . . . . . . . . . . . Trap Hack Attempts . | . . . . . . . . . . . Triggered . | . . . . . . . . . . . Disarmed 4 | . 4 . . . . . . . . . Reprogrammed . | . . . . . . . . . . . Reused . | . . . . . . . . . . . Traps Extracted . | . . . . . . . . . . . Installed . | . . . . . . . . . . . Triggered . | . . . . . . . . . . . Machines | -11 -10 -10 -9 -8 -7 -6 -5 -5 -5 -4 ---------- Run | Yrd Mat Min Mat Mat Fac Fac Fac Upp Upp Fac Machines Disabled 2 | . . . . . . . 1 1 . . Max in Single Turn 1 | . . . . . . . 1 1 . . Garrison Access 1 | . . . . . . 1 . . . . Machines Repaired . | . . . . . . . . . . . Machines Dismantled . | . . . . . . . . . . . Machines Sabotaged . | . . . . . . . . . . . Overloaded Fab Kills . | . . . . . . . . . . . Hacking | -11 -10 -10 -9 -8 -7 -6 -5 -5 -5 -4 --------- Run | Yrd Mat Min Mat Mat Fac Fac Fac Upp Upp Fac Machines Accessed 20 | . 5 1 1 2 3 3 5 . . . Terminals 11 | . 3 . 1 2 2 . 3 . . . Fabricators 1 | . . . . . . . 1 . . . Repair Stations . | . . . . . . . . . . . Recycling Units 3 | . 2 . . . . 1 . . . . Scanalyzers 3 | . . . . . 1 1 1 . . . Garrison Access 1 | . . . . . . 1 . . . . Total Hacks 38 | . 11 1 3 3 8 5 7 . . . Successful 15 | . 5 1 . 2 3 2 2 . . . Failed 23 | . 6 . 3 1 5 3 5 . . . Catastrophic 2 | . . . . . . 1 1 . . . Database Lockouts . | . . . . . . . . . . . Manual . | . . . . . . . . . . . Terminals 25 | . 8 . 3 3 6 . 5 . . . Fabricators 1 | . . . . . . . 1 . . . Repair Stations . | . . . . . . . . . . . Recycling Units 4 | . 3 . . . . 1 . . . . Scanalyzers 4 | . . . . . 2 1 1 . . . Garrison Access 3 | . . . . . . 3 . . . . Terminal Hacks 9 | . 3 1 . 2 2 . 1 . . . Record 2 | . 1 . . . . . 1 . . . Open Door 1 | . . 1 . . . . . . . . Emergency Access Points 2 | . . . . 1 1 . . . . . Locate Traps 1 | . 1 . . . . . . . . . Disarm Traps 1 | . 1 . . . . . . . . . Zone Layout 2 | . . . . 1 1 . . . . . Fabricator Hacks 1 | . . . . . . . 1 . . . Network Status 1 | . . . . . . . 1 . . . Repair Station Hacks . | . . . . . . . . . . . Recycling Unit Hacks 2 | . 2 . . . . . . . . . Retrieve Components 2 | . 2 . . . . . . . . . Scanalyzer 2 | . . . . . 1 1 . . . . Retrieve Study 2 | . . . . . 1 1 . . . . Garrison Access Hacks 1 | . . . . . . 1 . . . . Seal Access 1 | . . . . . . 1 . . . . Unauthorized Hacks . | . . . . . . . . . . . Terminals . | . . . . . . . . . . . Fabricators . | . . . . . . . . . . . Repair Stations . | . . . . . . . . . . . Recycling Units . | . . . . . . . . . . . Scanalyzers . | . . . . . . . . . . . Garrison Access . | . . . . . . . . . . . Data Cores Recovered . | . . . . . . . . . . . Used . | . . . . . . . . . . . Hacking Detections 11 | . 3 . 1 . 1 2 4 . . . Full Trace Events 1 | . . . 1 . . . . . . . Feedback Events . | . . . . . . . . . . . Feedback Blocked . | . . . . . . . . . . . Robot Schematics Acquired . | . . . . . . . . . . . Robots Built . | . . . . . . . . . . . Authchips . | . . . . . . . . . . . Time . | . . . . . . . . . . . Total Robot Build Rating . | . . . . . . . . . . . Part Schematics Acquired . | . . . . . . . . . . . Parts Built . | . . . . . . . . . . . Authchips . | . . . . . . . . . . . Time . | . . . . . . . . . . . Total Part Build Rating . | . . . . . . . . . . . Part Studies Acquired 2 | . . . . . 1 1 . . . . Parts Repaired . | . . . . . . . . . . . Time . | . . . . . . . . . . . Parts Recycled . | . . . . . . . . . . . Recycled Matter . | . . . . . . . . . . . Retrieved Matter . | . . . . . . . . . . . Retrieved Components 2 | . 2 . . . . . . . . . Parts Scanalyzed . | . . . . . . . . . . . Part Schematics Acquired . | . . . . . . . . . . . Parts Damaged . | . . . . . . . . . . . Bothacking | -11 -10 -10 -9 -8 -7 -6 -5 -5 -5 -4 ------------ Run | Yrd Mat Min Mat Mat Fac Fac Fac Upp Upp Fac Used RIF Installer . | . . . . . . . . . . . Robots Hacked . | . . . . . . . . . . . Non-combat . | . . . . . . . . . . . Combat . | . . . . . . . . . . . Robot Hacks Applied . | . . . . . . . . . . . Relay Couplers Released . | . . . . . . . . . . . Fabnet Peak Effective % . | . . . . . . . . . . . Robots Rewired . | . . . . . . . . . . . Allies Hacked . | . . . . . . . . . . . Hacks Repelled . | . . . . . . . . . . . Allies | -11 -10 -10 -9 -8 -7 -6 -5 -5 -5 -4 -------- Run | Yrd Mat Min Mat Mat Fac Fac Fac Upp Upp Fac Total Allies 4 | . . 4 . . . . . . . . Largest Group 3 | . . 3 3 1 . . . . . . Highest-Rated Group 55 | . . 40 55 16 . . . . . . Highest-Rated Ally 31 | . . 16 31 16 . . . . . . Total Orders . | . . . . . . . . . . . Ally Attacks 24 | . . . 24 . . . . . . . Total Damage 333 | . . . 333 . . . . . . . Kills 6 | . . . 6 . . . . . . . Allies Corrupted . | . . . . . . . . . . . Allies Melted . | . . . . . . . . . . . Intel | -11 -10 -10 -9 -8 -7 -6 -5 -5 -5 -4 ------- Run | Yrd Mat Min Mat Mat Fac Fac Fac Upp Upp Fac Active Infowar (turns) 4475 | . 350 590 234 99 2003 380 556 263 . . Sensors 2623 | . . 301 234 99 1989 . . . . . Traps 1176 | . . . . . . 357 556 263 . . Seismic 2648 | . 153 225 186 99 1985 . . . . . ECM 3299 | . 350 590 234 99 2003 23 . . . . Robot Analysis Total . | . . . . . . . . . . . Derelict Logs Recovered 3 | . . 1 . . . . . 2 . . Drone Launches . | . . . . . . . . . . . Drone Recoveries . | . . . . . . . . . . . Exploration | -11 -10 -10 -9 -8 -7 -6 -5 -5 -5 -4 ------------- Run | Yrd Mat Min Mat Mat Fac Fac Fac Upp Upp Fac Turns Passed 5557 | 57 405 590 234 99 2245 555 556 563 61 192 Spaces Moved 3543 | 46 319 346 173 90 1030 396 394 482 50 217 Core 298 | 7 . . . . . . . 69 5 217 Treads . | . . . . . . . . . . . Legs 428 | . . . . . . 362 66 . . . Wheels 831 | 39 319 346 127 . . . . . . . Hover . | . . . . . . . . . . . Flight 1986 | . . . 46 90 1030 34 328 413 45 . Fastest Speed 20 | 50 100 90 34 104 29 107 20 26 112 50 Average Speed 98 | 92 100 91 79 104 92 121 101 101 126 82 Slowest Speed 535 | 100 100 100 185 105 107 250 535 200 300 250 Overloaded Moves . | . . . . . . . . . . . Propulsion Burnouts . | . . . . . . . . . . . Robots Hopped . | . . . . . . . . . . . Potential Cave-ins . | . . . . . . . . . . . Cave-ins Triggered . | . . . . . . . . . . . Exploration Rate (%) 24 | 4 44 62 22 12 19 8 14 64 11 10 Regions Visited 10 Branch Regions 3 Pre-discovered Areas 1 | . . . . . . . . 1 . . Known Exits Taken 4 | . . . . . . 1 1 1 1 . Unknown Exits Taken 6 | 1 1 1 1 1 1 . . . . . Scrap Searched 2 | . . 1 . . . . . 1 . . Spaces Dug . | . . . . . . . . . . . Terrain Destroyed 67 | . . . . . . . . 65 . 2 Melee . | . . . . . . . . . . . Projectile 6 | . . . . . . . . 4 . 2 AOE 61 | . . . . . . . . 61 . . Terrain Rammed . | . . . . . . . . . . . Walls Destroyed . | . . . . . . . . . . . Machines Disabled . | . . . . . . . . . . . Actions | -11 -10 -10 -9 -8 -7 -6 -5 -5 -5 -4 --------- Run | Yrd Mat Min Mat Mat Fac Fac Fac Upp Upp Fac Total 5409 | 60 405 576 237 96 2278 454 501 528 49 225 Wait 1587 | . 81 198 39 . 1177 30 48 12 . 2 Move 3533 | 45 318 345 172 89 1029 395 393 481 49 217 Hop . | . . . . . . . . . . . Pick Up 38 | 8 3 5 1 3 7 4 3 4 . . Fast Attach 27 | . . 2 4 . 5 4 12 . . . Attach 33 | 6 2 . 1 2 7 7 . 7 . 1 Detach 5 | . . . . . 1 2 . 2 . . Swap 14 | 1 . . 3 1 . . 8 1 . . Drop 20 | . 1 3 2 1 1 . 12 . . . Fire 110 | . . 23 15 . 18 8 21 21 . 4 Melee 11 | . . . . . 3 4 4 . . . Ram 1 | . . . . . . . . . . 1 Kick . | . . . . . . . . . . . Crush . | . . . . . . . . . . . Escape Stasis 30 | . . . . . 30 . . . . . Rewire . | . . . . . . . . . . . Trap . | . . . . . . . . . . . Miscellaneous . | . . . . . . . . . . . Route ------- -11/Scrapyard -10/Materials (discovered 2 exits: *Mat / *Min) -10/Mines (discovered 2 exits: *Mat x2) -9/Materials -8/Materials -7/Factory -6/Factory -5/Factory -5/Upper Caves -5/Upper Caves -4/Factory History --------- Turn | Location | Event 13 | -11/Scrapyard | Discovered new exit (range 15) 58 | -11/Scrapyard | Entered Materials 272 | -10/Materials | Discovered new exit (range 14) 305 | -10/Materials | Build established: Mutant 429 | -10/Materials | Discovered new exit (range 15) 463 | -10/Materials | Entered Mines 484 | -10/Mines | Excavation squad dispatched 484 | -10/Mines | A large section of the Mines collapsed 685 | -10/Mines | Learned Materials garrison access intel 747 | -10/Mines | Met a Derelict who couldn't figure out how to use a Trap Extractor 795 | -10/Mines | A weapon hastily lodged in a ceiling crevice suddenly fell to the ground 924 | -10/Mines | Discovered new exit (range 8) 967 | -10/Mines | Assisted by bots powering up and referring to "LRC-V3" 1034 | -10/Mines | Received a Rocket Launcher from a helpful Derelict 1038 | -10/Mines | Met a Derelict testing a Signal Generator 1040 | -10/Mines | Discovered new exit (range 12) 1050 | -10/Mines | Found Signal Generator 1053 | -10/Mines | Entered Materials 1053 | -9/Materials | Accompanied by 3 allies 1053 | -9/Materials | Evolved 2 slots: Propulsion x1, Utility x1 1260 | -9/Materials | Discovered new exit (range 4) 1287 | -9/Materials | Entered another Materials area 1287 | -8/Materials | Accompanied by 1 ally 1287 | -8/Materials | Evolved 2 slots: Power x1, Weapon x1 1288 | -8/Materials | Loaded intel: 1 garrison access location 1383 | -8/Materials | Discovered new exit (range 3) 1386 | -8/Materials | Entered Factory 1386 | -7/Factory | Evolved 2 slots: Propulsion x1, Utility x1 3413 | -7/Factory | Lost 7 parts (2p2n2u1w) 3615 | -7/Factory | Discovered new exit (range 16) 3631 | -7/Factory | Entered another Factory area 3631 | -6/Factory | Evolved 2 slots: Propulsion x1, Utility x1 3726 | -6/Factory | Lost 5 parts (1n1u3w) 4025 | -6/Factory | Build established: Scavenger-Mutant 4168 | -6/Factory | Discovered new exit (range 11) 4185 | -6/Factory | Identified exit to Factory 4186 | -6/Factory | Entered another Factory area 4186 | -5/Factory | Evolved 2 slots: Power x1, Propulsion x1 4699 | -5/Factory | Lost 3 parts (1p2w) 4705 | -5/Factory | Discovered new exit (range 5) 4741 | -5/Factory | Identified exit to Upper Caves 4742 | -5/Factory | Entered Upper Caves 4766 | -5/Upper Caves | Attracted the attention of an 0b10 base 4843 | -5/Upper Caves | Destroyed 18 combat bots 4843 | -5/Upper Caves | Lost 10 parts (2p4n1u3w) 4895 | -5/Upper Caves | Attacked by a delusional Derelict stockpiling Unaware 4993 | -5/Upper Caves | Entered a destroyed Warlord outpost 5083 | -5/Upper Caves | Learned 4 Factory zone layouts 5210 | -5/Upper Caves | Discovered new exit (range 16) 5225 | -5/Upper Caves | Identified exit to Upper Caves 5304 | -5/Upper Caves | Build established: Mutant 5305 | -5/Upper Caves | Entered another Upper Caves area 5345 | -5/Upper Caves | Discovered new exit (range 14) 5364 | -5/Upper Caves | Identified exit to Factory 5366 | -5/Upper Caves | Core integrity fell below 50% 5366 | -5/Upper Caves | Entered Factory 5366 | -4/Factory | Evolved 2 slots: Utility x2 5389 | -4/Factory | Lost 3 parts (2n1w) 5498 | -4/Factory | Lost 3 parts (1p1u1w) 5504 | -4/Factory | Core integrity fell below 50% 5551 | -4/Factory | Core integrity fell below 20% 5558 | -4/Factory | Destroyed by S-27 Virus with Autogun Last Messages --------------- 05494_ Slug penetrates Wall. 05495_ System corrupted: Substantial component data lost. 05535_ Penetrated by Slug. 05540_ K-01 Serf cleans the Subcomponent Replicator. 05545_ O-32 Director uses terminal to summon reinforcements. 05545_ ALERT: Hostiles spotted, dispatching reinforcements to Terminal F001. 05545_ O-32 Director locks terminal. 05546_ W-44 Eye sends out distress signal. 05548_ Penetrated by Slug. 05550_ U-05 Engineer destroyed. 05551_ Penetrated by Slug. 05551_ Slug penetrates Wall. 05553_ Penetrated by Slug. 05556_ Slug penetrates S-27 Virus. 05556_ S-27 Virus destroyed. 05556_ Slug penetrates Wall. Map ----- +----------------------------------------------------+ | ?????????????????????????????????????????????????? | | ?????????????????????????????????????????????????? | | ?????????????????????????????????????????????????? | | ?????????????????????????????????????????????????? | | ?????????????????????????????????????????????????? | | ?????????????????????????????????????????????????? | | ?????????????????????????????????????????????????? | | ?????????????????????????????????????????????????? | | ?????????????????????????????????????????????????? | | ?????????????????????????????????????????????????? | | ?????????????????????????????????????????????????? | | ?????????????????????????????????????????????????? | | ?????????????????????????????????????????????????? | | ?????????????????????????????????????????????????? | | ??????????????????????????????????? ??????????## | | ??????????????????????????????????? #????????? # | | ??????????????????????????????????? #??#?????" # | | ?????????????????????############## #??# "?""" # | | ?????????????????????# # #??# """"" # | | ?????????????????????# # #??# # | | ?????????????????????# # #??# """ # | | ?????????????????????# # #??# """"" # | | ?????????????????????# # #??# """"" # | | ?????????????????????# # #??# # | | ?????????????????????# # #??#"" # | | ?????????????????????+ @ # #??#"" # | | ?????????????????????# s# ! #??#"" / | | ?????????????????????# s# % #??#T # | | ?????????????????????+ s%h #??#"" # | | ?????????????????????# #* #??#"" # | | ?????????????????????############## ####"" # | | ????? ????????????????????????# ## # | | ????? ????????????????????????# #######+## | | ????? ????????????????????????# ! | | ????? ??????????###???????????# | | ????? ?????????? ############# | | ????? ?????????? ##/####### | | ????? ?????????? ######## # ????# | | ????? ?????????? #??????#########" ==??# | | ?????#/#?????????? ##+########?????????#T ===## | | ?????# #??????????#### #?????????#" == ## | | ?????# #?????????????# #?????????# ## | | ?????# #?????????????# #?????????# ## | | ?????# #?????????????# #????????########### | | ?????# #?????????????# #????????# ??????# | | #????# #?????????????# #????????# ??????# | | ######+############### #????????# ""??????# | | # # #????????# ""??????# | | # # #????????# ""??????# | | " ##########????????# ??????/ | +----------------------------------------------------+ Best States ------------- Heat Dissipation 59 Energy Generation 39 Energy Capacity 420 Matter Stores 300 Matter Capacity 300 Sight Range 16 Robot Scan Range 15 Terrain Scan Density 10 ECM Strength 1 Evasion (%) 66 Core Analysis 6 Item Schematics ----------------- None Robot Schematics ------------------ None Fabricated ------------ Nothing Repaired ---------- Nothing Studied --------- VTOL Module | -7/Factory | Hacked Axe | -6/Factory | Hacked Alien Tech Used ----------------- None Achievements -------------- None Challenges ------------ None Game ------ Seed ColdCloakingMindspike Manual? 0 Play Time 00:47:26 Cumulative 33.1 hours Start 2026.09.04 @ 21:32:53 End 2026.09.04 @ 22:19:16 Sessions 1 Manual Loads 0 Difficulty Rogue Special Mode None Game No. 81 Rogue 64 Adventurer 15 Explorer 2 Win Type - Total 0 Types 0/0/0/0/0/0/0/0/0/0 Lore% 25 Gallery% 25 Achievement% 21 Wizard Run 0 Options --------- Layout 1 ASCII 0 Keyboard 0 Movement Mouse Keybinds 0 Fullscreen 1 Font 24/Smallcaps Map View 50x35 Zoom Use 0% Tactical HUD 1 Map Filters NONE Filters NONE Steam 1 RUN: ad2362c7-b50d-4d41-9d74-ad0a482ac6e8